[Event "Titled Tuesday Blitz June 27 Early 2023"]
[White "Yelisieiev, Yevhenii"]
[Black "Gomes, Luiz Alexandre de Souza"]
[WhiteFideId "14139642"]
[BlackFideId "2102790"]
[WhiteElo "2513"]
[BlackElo "2342"]
[Result "1-0"]
[Round "8"]
[TimeControl "180+2"]
[Date "2023.06.27"]
[WhiteClock "0:00:10"]
[BlackClock "0:00:00"]
[Board "116"]

1. d4 {[%clk 0:02:45]}  Nf6 {[%clk 0:02:59]} 2. Nf3 {[%clk 0:02:42]}  g6 {[%clk 0:02:59]} 3. g3 {[%clk 0:02:42]}  Bg7 {[%clk 0:02:59]} 4. Bg2 {[%clk 0:02:43]}  O-O {[%clk 0:02:59]} 5. O-O {[%clk 0:02:43]}  d5 {[%clk 0:03:00]} 6. c3 {[%clk 0:02:42]}  c6 {[%clk 0:03:00]} 7. a4 {[%clk 0:02:42]}  Bf5 {[%clk 0:03:00]} 8. Nbd2 {[%clk 0:02:33]}  Ne4 {[%clk 0:03:00]} 9. a5 {[%clk 0:02:31]}  a6 {[%clk 0:02:59]} 10. Qb3 {[%clk 0:02:31]}  Qc8 {[%clk 0:02:57]} 11. Re1 {[%clk 0:02:14]}  Nd7 {[%clk 0:02:56]} 12. Nh4 {[%clk 0:02:12]}  Nxd2 {[%clk 0:02:55]} 13. Bxd2 {[%clk 0:02:13]}  Be6 {[%clk 0:02:55]} 14. Qb4 {[%clk 0:02:09]}  Re8 {[%clk 0:02:54]} 15. e4 {[%clk 0:02:03]}  dxe4 {[%clk 0:02:54]} 16. Bxe4 {[%clk 0:02:02]}  Nf6 {[%clk 0:02:53]} 17. Bg2 {[%clk 0:02:02]}  Nd5 {[%clk 0:02:43]} 18. Qa3 {[%clk 0:02:01]}  Bf8 {[%clk 0:02:43]} 19. Nf3 {[%clk 0:02:00]}  Nc7 {[%clk 0:02:37]} 20. Ne5 {[%clk 0:01:50]}  Bd5 {[%clk 0:02:38]} 21. Bf1 {[%clk 0:01:38]}  f6 {[%clk 0:02:29]} 22. Nd3 {[%clk 0:01:37]}  e5 {[%clk 0:02:29]} 23. Qa4 {[%clk 0:01:33]}  exd4 {[%clk 0:02:13]} 24. Qxd4 {[%clk 0:01:32]}  Bg7 {[%clk 0:02:14]} 25. Nf4 {[%clk 0:01:29]}  Bf7 {[%clk 0:02:13]} 26. Bc4 {[%clk 0:01:26]}  Bxc4 {[%clk 0:01:33]} 27. Qxc4+ {[%clk 0:01:26]}  Kh8 {[%clk 0:01:34]} 28. Rxe8+ {[%clk 0:01:21]}  Nxe8 {[%clk 0:01:31]} 29. Re1 {[%clk 0:01:20]}  Nd6 {[%clk 0:01:31]} 30. Qc5 {[%clk 0:01:16]}  Qd7 {[%clk 0:01:25]} 31. Ne6 {[%clk 0:01:14]}  Re8 {[%clk 0:01:22]} 32. Nxg7 {[%clk 0:01:01]}  Rxe1+ {[%clk 0:01:22]} 33. Bxe1 {[%clk 0:01:01]}  Kxg7 {[%clk 0:01:22]} 34. Qd4 {[%clk 0:00:50]}  Qe6 {[%clk 0:01:22]} 35. Bd2 {[%clk 0:00:48]}  Nc4 {[%clk 0:01:15]} 36. b4 {[%clk 0:00:35]}  Qd5 {[%clk 0:01:09]} 37. Qxd5 {[%clk 0:00:28]}  cxd5 {[%clk 0:01:10]} 38. Bf4 {[%clk 0:00:24]}  g5 {[%clk 0:01:09]} 39. Bb8 {[%clk 0:00:21]}  Kf7 {[%clk 0:01:09]} 40. Kf1 {[%clk 0:00:21]}  Ke6 {[%clk 0:01:09]} 41. Ke2 {[%clk 0:00:22]}  f5 {[%clk 0:01:09]} 42. f3 {[%clk 0:00:21]}  g4 {[%clk 0:01:01]} 43. fxg4 {[%clk 0:00:19]}  fxg4 {[%clk 0:01:02]} 44. Kd3 {[%clk 0:00:19]}  h5 {[%clk 0:00:49]} 45. Bf4 {[%clk 0:00:19]}  Na3 {[%clk 0:00:40]} 46. Kd4 {[%clk 0:00:10]}  Nb5+ {[%clk 0:00:34]} 47. Kc5 {[%clk 0:00:11]}  Nxc3 {[%clk 0:00:34]} 48. Kb6 {[%clk 0:00:12]}  Na2 {[%clk 0:00:27]} 49. Bd2 {[%clk 0:00:11]}  Kd6 {[%clk 0:00:16]} 50. Kxb7 {[%clk 0:00:12]}  d4 {[%clk 0:00:12]} 51. Kxa6 {[%clk 0:00:12]}  Kd5 {[%clk 0:00:12]} 52. b5 {[%clk 0:00:12]}  Nc3 {[%clk 0:00:10]} 53. b6 {[%clk 0:00:12]}  Ne4 {[%clk 0:00:08]} 54. Bf4 {[%clk 0:00:11]}  Nc5+ {[%clk 0:00:07]} 55. Ka7 {[%clk 0:00:11]}  Kc6 {[%clk 0:00:06]} 56. a6 {[%clk 0:00:10]}  d3 {[%clk 0:00:00]} 57. b7 {[%clk 0:00:10]} 1-0


[Site "https://www.chess.com"]

[Event "Titled Tuesday Blitz June 27 Early 2023"]
[White "Rodriguez Polo, Mateo"]
[Black "Shubenkova, Veronika"]
[WhiteFideId "24509396"]
[BlackFideId "44124040"]
[WhiteElo "2328"]
[BlackElo "2504"]
[Result "1/2-1/2"]
[Round "8"]
[TimeControl "180+2"]
[Date "2023.06.27"]
[WhiteClock "0:00:25"]
[BlackClock "0:01:38"]
[Board "118"]

1. e4 {[%clk 0:02:59]}  e6 {[%clk 0:03:00]} 2. d4 {[%clk 0:02:59]}  d5 {[%clk 0:03:01]} 3. exd5 {[%clk 0:02:59]}  exd5 {[%clk 0:03:02]} 4. Bd3 {[%clk 0:03:00]}  Nf6 {[%clk 0:03:02]} 5. Ne2 {[%clk 0:03:00]}  Bd6 {[%clk 0:03:03]} 6. O-O {[%clk 0:03:00]}  O-O {[%clk 0:03:03]} 7. Bf4 {[%clk 0:02:55]}  c6 {[%clk 0:03:04]} 8. c3 {[%clk 0:02:46]}  Bg4 {[%clk 0:02:59]} 9. f3 {[%clk 0:02:45]}  Bh5 {[%clk 0:02:58]} 10. Re1 {[%clk 0:02:45]}  Re8 {[%clk 0:02:54]} 11. Bxd6 {[%clk 0:02:35]}  Qxd6 {[%clk 0:02:54]} 12. Nd2 {[%clk 0:02:36]}  Nbd7 {[%clk 0:02:54]} 13. Nf1 {[%clk 0:02:34]}  Re7 {[%clk 0:02:53]} 14. Neg3 {[%clk 0:02:30]}  Rxe1 {[%clk 0:02:50]} 15. Qxe1 {[%clk 0:02:29]}  Re8 {[%clk 0:02:49]} 16. Qd2 {[%clk 0:02:29]}  Bg6 {[%clk 0:02:49]} 17. Nf5 {[%clk 0:02:24]}  Bxf5 {[%clk 0:02:48]} 18. Bxf5 {[%clk 0:02:24]}  Qe7 {[%clk 0:02:45]} 19. Kf2 {[%clk 0:02:22]}  g6 {[%clk 0:02:44]} 20. Bd3 {[%clk 0:02:22]}  Kg7 {[%clk 0:02:44]} 21. Re1 {[%clk 0:02:22]}  Qxe1+ {[%clk 0:02:40]} 22. Qxe1 {[%clk 0:02:22]}  Rxe1 {[%clk 0:02:41]} 23. Kxe1 {[%clk 0:02:23]}  Ne8 {[%clk 0:02:42]} 24. Ne3 {[%clk 0:02:17]}  Nd6 {[%clk 0:02:41]} 25. Kd2 {[%clk 0:02:16]}  f5 {[%clk 0:02:40]} 26. b3 {[%clk 0:02:14]}  Kf6 {[%clk 0:02:38]} 27. c4 {[%clk 0:02:14]}  Ke6 {[%clk 0:02:35]} 28. g3 {[%clk 0:02:08]}  Nf6 {[%clk 0:02:34]} 29. h4 {[%clk 0:02:06]}  Nh5 {[%clk 0:02:34]} 30. Nf1 {[%clk 0:02:06]}  b6 {[%clk 0:02:28]} 31. Ke3 {[%clk 0:02:05]}  c5 {[%clk 0:02:27]} 32. g4 {[%clk 0:01:48]}  f4+ {[%clk 0:02:27]} 33. Ke2 {[%clk 0:01:32]}  Ng3+ {[%clk 0:02:20]} 34. Nxg3 {[%clk 0:01:30]}  fxg3 {[%clk 0:02:21]} 35. dxc5 {[%clk 0:01:27]}  bxc5 {[%clk 0:02:20]} 36. f4 {[%clk 0:01:26]}  dxc4 {[%clk 0:02:15]} 37. Bxc4+ {[%clk 0:01:22]}  Nxc4 {[%clk 0:01:44]} 38. bxc4 {[%clk 0:01:22]}  h5 {[%clk 0:01:44]} 39. gxh5 {[%clk 0:00:48]}  gxh5 {[%clk 0:01:43]} 40. Kf3 {[%clk 0:00:49]}  Kf5 {[%clk 0:01:39]} 41. Kxg3 {[%clk 0:00:37]}  Ke4 {[%clk 0:01:38]} 42. f5 {[%clk 0:00:30]}  Kxf5 {[%clk 0:01:38]} 43. Kf3 {[%clk 0:00:31]}  a6 {[%clk 0:01:36]} 44. a3 {[%clk 0:00:29]}  Ke5 {[%clk 0:01:36]} 45. Ke3 {[%clk 0:00:28]}  Kf5 {[%clk 0:01:37]} 46. Kf3 {[%clk 0:00:28]}  Ke5 {[%clk 0:01:37]} 47. Ke3 {[%clk 0:00:27]}  a5 {[%clk 0:01:38]} 48. a4 {[%clk 0:00:24]}  Kf5 {[%clk 0:01:38]} 49. Kf3 {[%clk 0:00:25]}  Ke5 {[%clk 0:01:38]} 50. Ke3 {[%clk 0:00:25]}  Kf5 {[%clk 0:01:38]} 51. Kf3 {[%clk 0:00:25]}  Ke5 {[%clk 0:01:38]} 52. Ke3 {[%clk 0:00:25]} 1/2-1/2


[Site "https://www.chess.com"]

[Event "Titled Tuesday Blitz June 27 Early 2023"]
[White "Vyatkin, Dmitry"]
[Black "Osinovsky, Stepan"]
[WhiteFideId "4171900"]
[BlackFideId "4157354"]
[WhiteElo "2493"]
[BlackElo "2322"]
[Result "1-0"]
[Round "8"]
[TimeControl "180+2"]
[Date "2023.06.27"]
[WhiteClock "0:00:15"]
[BlackClock "0:00:00"]
[Board "119"]

1. d4 {[%clk 0:02:55]}  Nf6 {[%clk 0:02:58]} 2. c4 {[%clk 0:02:53]}  g6 {[%clk 0:02:58]} 3. g3 {[%clk 0:02:46]}  Bg7 {[%clk 0:02:58]} 4. Bg2 {[%clk 0:02:46]}  O-O {[%clk 0:02:58]} 5. Nc3 {[%clk 0:02:44]}  d6 {[%clk 0:02:59]} 6. Nf3 {[%clk 0:02:43]}  Nbd7 {[%clk 0:02:58]} 7. O-O {[%clk 0:02:43]}  e5 {[%clk 0:02:58]} 8. e4 {[%clk 0:02:43]}  Re8 {[%clk 0:02:57]} 9. Re1 {[%clk 0:02:42]}  c6 {[%clk 0:02:54]} 10. h3 {[%clk 0:02:38]}  h6 {[%clk 0:02:35]} 11. Be3 {[%clk 0:02:31]}  Qe7 {[%clk 0:02:33]} 12. Qc2 {[%clk 0:02:26]}  Nh7 {[%clk 0:02:31]} 13. Rad1 {[%clk 0:02:21]}  Ng5 {[%clk 0:02:23]} 14. Nxg5 {[%clk 0:02:18]}  hxg5 {[%clk 0:02:22]} 15. Qd2 {[%clk 0:02:18]}  Bf6 {[%clk 0:02:19]} 16. d5 {[%clk 0:02:13]}  c5 {[%clk 0:02:13]} 17. a3 {[%clk 0:01:45]}  Kg7 {[%clk 0:02:13]} 18. b4 {[%clk 0:01:41]}  b6 {[%clk 0:02:10]} 19. Bf3 {[%clk 0:01:33]}  Rh8 {[%clk 0:02:04]} 20. Bg4 {[%clk 0:01:34]}  a5 {[%clk 0:01:04]} 21. bxc5 {[%clk 0:01:27]}  Nxc5 {[%clk 0:01:03]} 22. Bxc5 {[%clk 0:01:26]}  bxc5 {[%clk 0:01:00]} 23. Kg2 {[%clk 0:01:25]}  Rh7 {[%clk 0:00:32]} 24. Rh1 {[%clk 0:01:14]}  Ba6 {[%clk 0:00:25]} 25. Qd3 {[%clk 0:01:11]}  Rah8 {[%clk 0:00:24]} 26. Rb1 {[%clk 0:01:11]}  Qd8 {[%clk 0:00:23]} 27. Nd1 {[%clk 0:00:48]}  Qc7 {[%clk 0:00:19]} 28. Ne3 {[%clk 0:00:47]}  Rd8 {[%clk 0:00:17]} 29. Rb2 {[%clk 0:00:44]}  Rhh8 {[%clk 0:00:16]} 30. Rhb1 {[%clk 0:00:42]}  Rb8 {[%clk 0:00:17]} 31. Qc3 {[%clk 0:00:41]}  Rhd8 {[%clk 0:00:13]} 32. Rxb8 {[%clk 0:00:32]}  Rxb8 {[%clk 0:00:14]} 33. Rxb8 {[%clk 0:00:32]}  Qxb8 {[%clk 0:00:15]} 34. Qxa5 {[%clk 0:00:33]}  Qb7 {[%clk 0:00:14]} 35. a4 {[%clk 0:00:24]}  Be7 {[%clk 0:00:12]} 36. Bd7 {[%clk 0:00:19]}  Kf8 {[%clk 0:00:07]} 37. Bc6 {[%clk 0:00:17]}  Qc8 {[%clk 0:00:05]} 38. Bb5 {[%clk 0:00:16]}  Bb7 {[%clk 0:00:05]} 39. Qa7 {[%clk 0:00:14]}  Bd8 {[%clk 0:00:00]} 40. a5 {[%clk 0:00:15]} 1-0


[Site "https://www.chess.com"]

[Event "Titled Tuesday Blitz June 27 Early 2023"]
[White "FuenfgegenWilly"]
[Black "Howell, David W L"]
[BlackFideId "410608"]
[WhiteElo "2392"]
[BlackElo "2999"]
[Result "0-1"]
[Round "8"]
[TimeControl "180+2"]
[Date "2023.06.27"]
[WhiteClock "0:01:52"]
[BlackClock "0:01:37"]
[Board "124"]

1. d4 {[%clk 0:02:56]}  e6 {[%clk 0:02:56]} 2. e4 {[%clk 0:02:54]}  d5 {[%clk 0:02:56]} 3. exd5 {[%clk 0:02:55]}  exd5 {[%clk 0:02:56]} 4. Nf3 {[%clk 0:02:56]}  Bd6 {[%clk 0:02:53]} 5. c4 {[%clk 0:02:55]}  Nf6 {[%clk 0:02:47]} 6. c5 {[%clk 0:02:52]}  Be7 {[%clk 0:02:47]} 7. Nc3 {[%clk 0:02:52]}  O-O {[%clk 0:02:47]} 8. Bd3 {[%clk 0:02:52]}  b6 {[%clk 0:02:48]} 9. cxb6 {[%clk 0:02:51]}  axb6 {[%clk 0:02:49]} 10. O-O {[%clk 0:02:51]}  c6 {[%clk 0:02:45]} 11. h3 {[%clk 0:02:50]}  Re8 {[%clk 0:02:45]} 12. Re1 {[%clk 0:02:48]}  Nbd7 {[%clk 0:02:44]} 13. Bf4 {[%clk 0:02:48]}  Bb7 {[%clk 0:02:31]} 14. Ne5 {[%clk 0:02:47]}  Nxe5 {[%clk 0:02:30]} 15. Bxe5 {[%clk 0:02:45]}  Nd7 {[%clk 0:02:22]} 16. Bxh7+ {[%clk 0:02:17]}  Kxh7 {[%clk 0:02:19]} 17. Qh5+ {[%clk 0:02:17]}  Kg8 {[%clk 0:02:19]} 18. Bxg7 {[%clk 0:02:18]}  Kxg7 {[%clk 0:02:19]} 19. Re3 {[%clk 0:02:18]}  Nf8 {[%clk 0:02:06]} 20. Rae1 {[%clk 0:02:11]}  Ng6 {[%clk 0:02:02]} 21. f4 {[%clk 0:02:11]}  Rh8 {[%clk 0:01:45]} 22. Qg4 {[%clk 0:02:07]}  Rh4 {[%clk 0:01:44]} 23. Qg3 {[%clk 0:02:07]}  Bd6 {[%clk 0:01:42]} 24. Ne2 {[%clk 0:02:02]}  Qf6 {[%clk 0:01:39]} 25. Rf3 {[%clk 0:01:52]}  Re8 {[%clk 0:01:37]} 0-1


[Site "https://www.chess.com"]

[Event "Titled Tuesday Blitz June 27 Early 2023"]
[White "Aldokhin, Ivan"]
[Black "Barbot, Pierre"]
[WhiteFideId "24115720"]
[BlackFideId "663727"]
[WhiteElo "2596"]
[BlackElo "2381"]
[Result "1-0"]
[Round "8"]
[TimeControl "180+2"]
[Date "2023.06.27"]
[WhiteClock "0:00:45"]
[BlackClock "0:00:03"]
[Board "125"]

1. e4 {[%clk 0:02:59]}  c6 {[%clk 0:02:59]} 2. Nf3 {[%clk 0:02:58]}  d5 {[%clk 0:02:58]} 3. Nc3 {[%clk 0:02:59]}  dxe4 {[%clk 0:02:58]} 4. Nxe4 {[%clk 0:02:59]}  Nf6 {[%clk 0:02:58]} 5. Nxf6+ {[%clk 0:02:59]}  exf6 {[%clk 0:02:58]} 6. d4 {[%clk 0:03:00]}  Bd6 {[%clk 0:02:58]} 7. Bc4 {[%clk 0:03:01]}  O-O {[%clk 0:02:57]} 8. O-O {[%clk 0:03:01]}  Bc7 {[%clk 0:02:39]} 9. h3 {[%clk 0:02:58]}  Qd6 {[%clk 0:02:33]} 10. Re1 {[%clk 0:02:58]}  Bf5 {[%clk 0:02:31]} 11. Bd3 {[%clk 0:02:47]}  Bxd3 {[%clk 0:02:28]} 12. Qxd3 {[%clk 0:02:48]}  Nd7 {[%clk 0:02:28]} 13. c4 {[%clk 0:02:48]}  Rad8 {[%clk 0:02:26]} 14. Be3 {[%clk 0:02:32]}  Ne5 {[%clk 0:02:17]} 15. Qe2 {[%clk 0:02:21]}  Nxf3+ {[%clk 0:01:52]} 16. Qxf3 {[%clk 0:02:22]}  Qh2+ {[%clk 0:01:53]} 17. Kf1 {[%clk 0:02:14]}  Rfe8 {[%clk 0:01:52]} 18. b4 {[%clk 0:02:01]}  Rxd4 {[%clk 0:01:46]} 19. g4 {[%clk 0:01:51]}  Rde4 {[%clk 0:01:31]} 20. Rad1 {[%clk 0:01:45]}  h6 {[%clk 0:01:06]} 21. Rd7 {[%clk 0:01:41]}  Bf4 {[%clk 0:01:00]} 22. Bd2 {[%clk 0:01:24]}  Rxe1+ {[%clk 0:00:15]} 23. Bxe1 {[%clk 0:01:24]}  Bg5 {[%clk 0:00:12]} 24. Rxb7 {[%clk 0:01:19]}  Qe5 {[%clk 0:00:11]} 25. Bc3 {[%clk 0:01:17]}  Qe6 {[%clk 0:00:06]} 26. Qd3 {[%clk 0:01:12]}  h5 {[%clk 0:00:06]} 27. gxh5 {[%clk 0:01:09]}  Qc8 {[%clk 0:00:03]} 28. Qd7 {[%clk 0:01:08]}  Qxd7 {[%clk 0:00:02]} 29. Rxd7 {[%clk 0:01:09]}  Re4 {[%clk 0:00:02]} 30. Rxa7 {[%clk 0:01:02]}  Rxc4 {[%clk 0:00:02]} 31. Be1 {[%clk 0:01:02]}  Rc1 {[%clk 0:00:02]} 32. Ke2 {[%clk 0:01:02]}  Rc2+ {[%clk 0:00:02]} 33. Kd3 {[%clk 0:00:59]}  Rc1 {[%clk 0:00:02]} 34. Bc3 {[%clk 0:00:59]}  Rh1 {[%clk 0:00:02]} 35. a4 {[%clk 0:00:59]}  Rxh3+ {[%clk 0:00:03]} 36. Kc4 {[%clk 0:00:58]}  Rf3 {[%clk 0:00:03]} 37. Bd4 {[%clk 0:00:56]}  Rf4 {[%clk 0:00:03]} 38. a5 {[%clk 0:00:54]}  Bh4 {[%clk 0:00:03]} 39. Rd7 {[%clk 0:00:50]}  Bxf2 {[%clk 0:00:02]} 40. a6 {[%clk 0:00:50]}  Bxd4 {[%clk 0:00:01]} 41. Rxd4 {[%clk 0:00:50]}  Rf1 {[%clk 0:00:02]} 42. a7 {[%clk 0:00:50]}  Rc1+ {[%clk 0:00:02]} 43. Kb3 {[%clk 0:00:50]}  Ra1 {[%clk 0:00:02]} 44. Rd8+ {[%clk 0:00:50]}  Kh7 {[%clk 0:00:03]} 45. a8=Q {[%clk 0:00:51]}  Rxa8 {[%clk 0:00:03]} 46. Rxa8 {[%clk 0:00:51]}  Kh6 {[%clk 0:00:04]} 47. Rh8+ {[%clk 0:00:52]}  Kg5 {[%clk 0:00:04]} 48. Kc4 {[%clk 0:00:53]}  f5 {[%clk 0:00:05]} 49. Rc8 {[%clk 0:00:48]}  f4 {[%clk 0:00:05]} 50. Kd3 {[%clk 0:00:47]}  Kg4 {[%clk 0:00:05]} 51. Rxc6 {[%clk 0:00:46]}  Kg3 {[%clk 0:00:05]} 52. Ke4 {[%clk 0:00:46]}  f3 {[%clk 0:00:06]} 53. Rc3 {[%clk 0:00:45]}  f5+ {[%clk 0:00:06]} 54. Kxf5 {[%clk 0:00:45]}  Kg2 {[%clk 0:00:06]} 55. Rxf3 {[%clk 0:00:45]}  Kxf3 {[%clk 0:00:03]} 56. b5 {[%clk 0:00:45]} 1-0


[Site "https://www.chess.com"]

[Event "Titled Tuesday Blitz June 27 Early 2023"]
[White "Rios Escobar, Adan"]
[Black "Bueno, Alfeu Junior Varela"]
[WhiteFideId "3403645"]
[BlackFideId "2108879"]
[WhiteElo "2436"]
[BlackElo "2315"]
[Result "0-1"]
[Round "8"]
[TimeControl "180+2"]
[Date "2023.06.27"]
[WhiteClock "0:00:25"]
[BlackClock "0:00:06"]
[Board "131"]

1. d4 {[%clk 0:03:00]}  e6 {[%clk 0:02:58]} 2. c4 {[%clk 0:02:59]}  f5 {[%clk 0:02:58]} 3. Nf3 {[%clk 0:02:58]}  b6 {[%clk 0:02:57]} 4. g3 {[%clk 0:02:59]}  Bb7 {[%clk 0:02:57]} 5. Bg2 {[%clk 0:02:59]}  Nf6 {[%clk 0:02:57]} 6. O-O {[%clk 0:02:59]}  Be7 {[%clk 0:02:56]} 7. Nc3 {[%clk 0:02:49]}  Ne4 {[%clk 0:02:56]} 8. Qc2 {[%clk 0:02:42]}  Nxc3 {[%clk 0:02:55]} 9. Qxc3 {[%clk 0:02:42]}  Bf6 {[%clk 0:02:56]} 10. b4 {[%clk 0:02:36]}  O-O {[%clk 0:02:53]} 11. Bb2 {[%clk 0:02:35]}  d6 {[%clk 0:02:53]} 12. Qb3 {[%clk 0:02:34]}  Nd7 {[%clk 0:02:52]} 13. Rad1 {[%clk 0:02:14]}  Qe8 {[%clk 0:02:51]} 14. Rfe1 {[%clk 0:02:12]}  Kh8 {[%clk 0:02:51]} 15. Bf1 {[%clk 0:02:06]}  Qh5 {[%clk 0:02:47]} 16. a4 {[%clk 0:01:53]}  a5 {[%clk 0:02:46]} 17. b5 {[%clk 0:01:52]}  f4 {[%clk 0:02:42]} 18. Bg2 {[%clk 0:01:50]}  Rae8 {[%clk 0:02:32]} 19. Ba3 {[%clk 0:01:29]}  e5 {[%clk 0:02:21]} 20. dxe5 {[%clk 0:01:28]}  Nxe5 {[%clk 0:02:21]} 21. Nxe5 {[%clk 0:01:24]}  Bxg2 {[%clk 0:02:21]} 22. Kxg2 {[%clk 0:01:24]}  Bxe5 {[%clk 0:02:14]} 23. Rd5 {[%clk 0:01:22]}  fxg3 {[%clk 0:01:21]} 24. hxg3 {[%clk 0:01:23]}  Rxf2+ {[%clk 0:00:32]} 25. Kxf2 {[%clk 0:01:20]}  Qh2+ {[%clk 0:00:33]} 26. Kf1 {[%clk 0:01:14]}  Rf8+ {[%clk 0:00:20]} 27. Qf3 {[%clk 0:01:13]}  Rxf3+ {[%clk 0:00:20]} 28. exf3 {[%clk 0:01:14]}  Qxg3 {[%clk 0:00:20]} 29. Rd3 {[%clk 0:01:09]}  Qh3+ {[%clk 0:00:14]} 30. Kg1 {[%clk 0:01:05]}  g5 {[%clk 0:00:13]} 31. Bc1 {[%clk 0:01:02]}  Qg3+ {[%clk 0:00:12]} 32. Kf1 {[%clk 0:01:02]}  g4 {[%clk 0:00:12]} 33. Ree3 {[%clk 0:00:48]}  Qh3+ {[%clk 0:00:12]} 34. Ke2 {[%clk 0:00:45]}  g3 {[%clk 0:00:09]} 35. f4 {[%clk 0:00:39]}  Qh2+ {[%clk 0:00:09]} 36. Kd1 {[%clk 0:00:39]}  g2 {[%clk 0:00:10]} 37. fxe5 {[%clk 0:00:33]}  g1=Q+ {[%clk 0:00:10]} 38. Re1 {[%clk 0:00:34]}  Qg4+ {[%clk 0:00:07]} 39. Rf3 {[%clk 0:00:24]}  Qxf3+ {[%clk 0:00:06]} 40. Re2 {[%clk 0:00:25]}  Qhxe2# {[%clk 0:00:06]} 0-1


[Site "https://www.chess.com"]

[Event "Titled Tuesday Blitz June 27 Early 2023"]
[White "KorolDimitriy75"]
[Black "Sairam, Pranav"]
[BlackFideId "30951330"]
[WhiteElo "2424"]
[BlackElo "2312"]
[Result "1-0"]
[Round "8"]
[TimeControl "180+2"]
[Date "2023.06.27"]
[WhiteClock "0:00:59"]
[BlackClock "0:00:06"]
[Board "132"]

1. d4 {[%clk 0:02:59]}  d5 {[%clk 0:02:55]} 2. c4 {[%clk 0:02:59]}  e6 {[%clk 0:02:53]} 3. Nc3 {[%clk 0:02:59]}  Be7 {[%clk 0:02:53]} 4. cxd5 {[%clk 0:02:59]}  exd5 {[%clk 0:02:52]} 5. Bf4 {[%clk 0:02:59]}  c6 {[%clk 0:02:51]} 6. e3 {[%clk 0:02:59]}  Nf6 {[%clk 0:02:51]} 7. Bd3 {[%clk 0:02:59]}  O-O {[%clk 0:02:52]} 8. Qc2 {[%clk 0:02:59]}  Re8 {[%clk 0:02:49]} 9. Nge2 {[%clk 0:02:57]}  a5 {[%clk 0:02:48]} 10. O-O {[%clk 0:02:53]}  Na6 {[%clk 0:02:48]} 11. a3 {[%clk 0:02:53]}  Nc7 {[%clk 0:02:45]} 12. Bg3 {[%clk 0:02:40]}  Ne6 {[%clk 0:02:36]} 13. f3 {[%clk 0:02:39]}  h6 {[%clk 0:02:35]} 14. Rad1 {[%clk 0:02:38]}  Bd6 {[%clk 0:02:30]} 15. Bf2 {[%clk 0:02:37]}  c5 {[%clk 0:02:24]} 16. Bf5 {[%clk 0:02:26]}  cxd4 {[%clk 0:02:02]} 17. exd4 {[%clk 0:02:19]}  Nf4 {[%clk 0:01:54]} 18. Nxf4 {[%clk 0:02:12]}  Bxf4 {[%clk 0:01:52]} 19. Rfe1 {[%clk 0:02:11]}  Rxe1+ {[%clk 0:01:14]} 20. Rxe1 {[%clk 0:02:10]}  Bxf5 {[%clk 0:01:08]} 21. Qxf5 {[%clk 0:02:10]}  Bd2 {[%clk 0:01:08]} 22. Re2 {[%clk 0:01:49]}  Bxc3 {[%clk 0:01:06]} 23. bxc3 {[%clk 0:01:49]}  Qc7 {[%clk 0:01:04]} 24. Bg3 {[%clk 0:01:37]}  Qxc3 {[%clk 0:01:01]} 25. Be5 {[%clk 0:01:37]}  Re8 {[%clk 0:00:55]} 26. Kf2 {[%clk 0:01:21]}  Qc4 {[%clk 0:00:13]} 27. Rc2 {[%clk 0:01:12]}  Qb3 {[%clk 0:00:13]} 28. Rc7 {[%clk 0:01:02]}  Qb2+ {[%clk 0:00:10]} 29. Kg3 {[%clk 0:01:00]}  Qc1 {[%clk 0:00:06]} 30. Rxc1 {[%clk 0:00:59]} 1-0


[Site "https://www.chess.com"]

[Event "Titled Tuesday Blitz June 27 Early 2023"]
[White "Nilssen, Ellen Fredericia"]
[Black "Rom, Jasper"]
[WhiteFideId "1441230"]
[BlackFideId "2023733"]
[WhiteElo "2238"]
[BlackElo "2420"]
[Result "0-1"]
[Round "8"]
[TimeControl "180+2"]
[Date "2023.06.27"]
[WhiteClock "0:00:19"]
[BlackClock "0:00:09"]
[Board "134"]

1. Nf3 {[%clk 0:03:00]}  g6 {[%clk 0:02:55]} 2. g3 {[%clk 0:02:59]}  Bg7 {[%clk 0:02:55]} 3. Bg2 {[%clk 0:02:59]}  e5 {[%clk 0:02:55]} 4. d3 {[%clk 0:02:59]}  Ne7 {[%clk 0:02:55]} 5. O-O {[%clk 0:02:57]}  d5 {[%clk 0:02:55]} 6. e4 {[%clk 0:02:55]}  dxe4 {[%clk 0:02:53]} 7. dxe4 {[%clk 0:02:56]}  Qxd1 {[%clk 0:02:53]} 8. Rxd1 {[%clk 0:02:57]}  Nbc6 {[%clk 0:02:53]} 9. c3 {[%clk 0:02:52]}  Be6 {[%clk 0:02:51]} 10. Be3 {[%clk 0:02:44]}  O-O {[%clk 0:02:48]} 11. Nbd2 {[%clk 0:02:44]}  Rfd8 {[%clk 0:02:45]} 12. Bf1 {[%clk 0:02:40]}  f6 {[%clk 0:02:43]} 13. Bc4 {[%clk 0:02:37]}  Kf7 {[%clk 0:02:42]} 14. Bxe6+ {[%clk 0:02:35]}  Kxe6 {[%clk 0:02:42]} 15. Nb3 {[%clk 0:02:36]}  b6 {[%clk 0:02:41]} 16. a4 {[%clk 0:02:33]}  a5 {[%clk 0:02:39]} 17. Kf1 {[%clk 0:02:20]}  Rxd1+ {[%clk 0:02:35]} 18. Rxd1 {[%clk 0:02:19]}  Nc8 {[%clk 0:02:35]} 19. Nfd2 {[%clk 0:02:02]}  Nd6 {[%clk 0:02:32]} 20. Ke2 {[%clk 0:02:02]}  h5 {[%clk 0:02:25]} 21. f3 {[%clk 0:01:55]}  Rf8 {[%clk 0:02:22]} 22. Nc1 {[%clk 0:01:46]}  f5 {[%clk 0:02:21]} 23. exf5+ {[%clk 0:01:45]}  gxf5 {[%clk 0:02:19]} 24. Nd3 {[%clk 0:01:44]}  Ne7 {[%clk 0:02:14]} 25. Nf2 {[%clk 0:01:33]}  h4 {[%clk 0:02:05]} 26. Nh3 {[%clk 0:01:30]}  Rh8 {[%clk 0:01:47]} 27. Ng5+ {[%clk 0:01:27]}  Kf6 {[%clk 0:01:46]} 28. f4 {[%clk 0:01:18]}  Kg6 {[%clk 0:01:24]} 29. Ne6 {[%clk 0:01:14]}  hxg3 {[%clk 0:01:18]} 30. hxg3 {[%clk 0:01:14]}  Rh2+ {[%clk 0:01:18]} 31. Kd3 {[%clk 0:01:09]}  e4+ {[%clk 0:01:17]} 32. Kc2 {[%clk 0:01:09]}  Nd5 {[%clk 0:01:10]} 33. Bg1 {[%clk 0:01:05]}  Rg2 {[%clk 0:01:05]} 34. Kb1 {[%clk 0:01:01]}  Bxc3 {[%clk 0:00:58]} 35. Nb3 {[%clk 0:00:43]}  Rxb2+ {[%clk 0:00:52]} 36. Kc1 {[%clk 0:00:40]}  c6 {[%clk 0:00:42]} 37. Nbd4 {[%clk 0:00:35]}  Nc4 {[%clk 0:00:21]} 38. Nxc6 {[%clk 0:00:30]}  Bd2+ {[%clk 0:00:09]} 39. Rxd2 {[%clk 0:00:30]}  Rxd2 {[%clk 0:00:09]} 40. Ne5+ {[%clk 0:00:28]}  Nxe5 {[%clk 0:00:09]} 41. Kxd2 {[%clk 0:00:19]}  Nf3+ {[%clk 0:00:09]} 0-1


[Site "https://www.chess.com"]